fUSD/lending_fUSD_20240418
["ID","MTS","AMOUNT","RATE_DAILY","PERIOD"]
[322875600,1713456639107,-6361.8489334,0.00017979,2]
[322875601,1713456639117,-323.85318919,0.00017982,2]
[322875602,1713456639127,-315.98728458,0.00017986,2]
[322875603,1713456639136,-443.96593474,0.00017986,2]
[322875604,1713456639146,-155.0,0.00017986,2]
[322875605,1713456639155,-308.26142606,0.00017986,2]
[322875606,1713456639164,-579.22053881,0.00017987,2]
[322875607,1713456639173,-9707.99422842,0.00017987,2]
[322875608,1713456639183,-151.0,0.00017988,2]
[322875609,1713456639191,-151.0,0.00017988,2]
[322875610,1713456639200,-151.0,0.00017988,2]
[322875611,1713456639210,-151.0,0.00017988,2]
[322875612,1713456639219,-591.065839,0.00017988,2]
[322875613,1713456639228,-153.117603,0.00017988,2]
[322875614,1713456639237,-591.065839,0.00017988,2]
[322875615,1713456639247,-153.08372,0.00017988,2]
[322875616,1713456639255,-263.959254,0.00017988,2]
[322875617,1713456639265,-151.0,0.00017988,2]
[322875618,1713456639274,-263.959254,0.00017988,2]
[322875619,1713456639286,-151.0,0.00017988,2]
[322875620,1713456639295,-151.0,0.00017988,2]
[322875621,1713456639303,-518.671343,0.00017988,2]
[322875622,1713456639312,-518.671343,0.00017988,2]
[322875623,1713456639321,-151.0,0.00017988,2]
[322875624,1713456639331,-151.0,0.00017988,2]
[322875625,1713456639340,-151.0,0.00017988,2]
[322875626,1713456639350,-151.0,0.00017988,2]
[322875627,1713456639359,-151.0,0.00017988,2]
[322875628,1713456639369,-151.0,0.00017988,2]
[322875629,1713456639378,-435.382962,0.00017988,2]
[322875630,1713456639388,-151.0,0.00017988,2]
[322875631,1713456639397,-151.0,0.00017988,2]
[322875632,1713456639407,-435.382962,0.00017988,2]
[322875633,1713456639416,-151.0,0.00017988,2]
[322875634,1713456639426,-151.0,0.00017988,2]
[322875635,1713456639435,-151.0,0.00017988,2]
[322875636,1713456639447,-151.0,0.00017988,2]
[322875637,1713456639458,-151.0,0.00017988,2]
[322875638,1713456639467,-151.0,0.00017988,2]
[322875639,1713456639477,-151.0,0.00017988,2]
[322875640,1713456639487,-412.908908,0.00017988,2]
[322875641,1713456639497,-412.908908,0.00017988,2]
[322875642,1713456639506,-151.0,0.00017988,2]
[322875643,1713456639515,-151.0,0.00017988,2]
[322875644,1713456639526,-250.554013,0.00017988,2]
[322875645,1713456639540,-250.554013,0.00017988,2]
[322875646,1713456639550,-421.999903,0.00017988,2]
[322875647,1713456639561,-887.584555,0.00017988,2]
[322875648,1713456639571,-421.999903,0.00017988,2]
[322875649,1713456639581,-887.584555,0.00017988,2]
[322875650,1713456639591,-151.0,0.00017988,2]
[322875651,1713456639600,-151.0,0.00017988,2]
[322875652,1713456639609,-203.481194,0.00017988,2]
[322875653,1713456639618,-203.481194,0.00017988,2]
[322875654,1713456639628,-151.0,0.00017988,2]
[322875655,1713456639638,-2467.692125,0.00017988,2]
[322875656,1713456639648,-2467.692125,0.00017988,2]
[322875657,1713456639657,-2721.286739,0.00017988,2]
[322875658,1713456639667,-190.032245,0.00017988,2]
[322875659,1713456639676,-2721.286739,0.00017988,2]
[322875660,1713456639685,-190.032245,0.00017988,2]
[322875661,1713456639694,-357.942986,0.00017988,2]
[322875662,1713456639704,-357.942986,0.00017988,2]
[322875663,1713456639713,-151.0,0.00017988,2]
[322875664,1713456639723,-151.0,0.00017988,2]
[322875665,1713456639732,-151.0,0.00017988,2]
[322875666,1713456639741,-599.284516,0.00017988,2]
[322875667,1713456639750,-151.0,0.00017988,2]
[322875668,1713456639759,-599.284516,0.00017988,2]
[322875669,1713456639770,-221.090691,0.00017988,2]
[322875670,1713456639779,-151.0,0.00017988,2]
[322875671,1713456639795,-151.0,0.00017988,2]
[322875672,1713456639804,-221.090691,0.00017988,2]
[322875673,1713456639813,-151.0,0.00017988,2]
[322875674,1713456639823,-525.440536,0.00017988,2]
[322875675,1713456639833,-525.440536,0.00017988,2]
[322875676,1713456639843,-151.0,0.00017988,2]
[322875677,1713456639853,-231.486039,0.00017988,2]
[322875678,1713456639862,-187.943335,0.00017988,2]
[322875679,1713456639872,-151.0,0.00017988,2]
[322875680,1713456639881,-187.943335,0.00017988,2]
[322875681,1713456639890,-1069.506373,0.00017988,2]
[322875682,1713456639900,-1069.506373,0.00017988,2]
[322875683,1713456639909,-151.0,0.00017988,2]
[322875684,1713456639918,-337.675504,0.00017988,2]
[322875685,1713456639927,-352.826732,0.00017988,2]
[322875686,1713456639936,-352.826732,0.00017988,2]
[322875687,1713456639946,-337.675504,0.00017988,2]
[322875688,1713456639955,-1396.106304,0.0001799,2]
[322875689,1713456639964,-1396.106304,0.0001799,2]
[322875690,1713456639973,-151.0,0.0001799,2]
[322875691,1713456639982,-151.0,0.0001799,2]
[322875692,1713456639991,-151.0,0.0001799,2]
[322875693,1713456640000,-285.3816,0.0001799,2]
[322875694,1713456640009,-285.3816,0.0001799,2]
[322875695,1713456640018,-1774.906002,0.0001799,2]
[322875696,1713456640029,-1774.906002,0.0001799,2]
[322875697,1713456640044,-2927.04111427,0.0001799,2]
[322875698,1713456640053,-160.27626592,0.0001799,2]
[322875699,1713456640062,-151.22363176,0.0001799,2]
[322875700,1713456640071,-151.22363176,0.0001799,2]
[322875701,1713456640081,-151.0,0.00017991,2]
[322875702,1713456640090,-287.14,0.00017991,2]
[322875703,1713456640099,-287.14,0.00017991,2]
[322875704,1713456640108,-151.0,0.00017991,2]
[322875705,1713456640118,-205.714873,0.00017991,2]
[322875706,1713456640127,-151.0,0.00017991,2]
[322875707,1713456640136,-151.0,0.00017991,2]
[322875708,1713456640146,-151.0,0.00017991,2]
[322875709,1713456640155,-151.0,0.00017991,2]
[322875710,1713456640164,-151.0,0.00017991,2]
[322875711,1713456640173,-270.016629,0.00017991,2]
[322875712,1713456640182,-270.016629,0.00017991,2]
[322875713,1713456640191,-151.0,0.00017991,2]
[322875714,1713456640201,-151.0,0.00017991,2]
[322875715,1713456640210,-167.871537,0.00017991,2]
[322875716,1713456640219,-151.0,0.00017991,2]
[322875717,1713456640228,-292.128013,0.00017991,2]
[322875718,1713456640238,-158.438411,0.00017991,2]
[322875719,1713456640247,-152.055199,0.00017991,2]
[322875720,1713456640256,-152.055199,0.00017991,2]
[322875721,1713456640265,-151.0,0.00017991,2]
[322875722,1713456640274,-151.0,0.00017991,2]
[322875723,1713456640287,-151.0,0.00017991,2]
[322875724,1713456640296,-707.824996,0.00017991,2]
[322875725,1713456640305,-151.0,0.00017991,2]
[322875726,1713456640314,-707.824996,0.00017991,2]
[322875727,1713456640323,-151.0,0.00017991,2]
[322875728,1713456640332,-153.840647,0.00017991,2]
[322875729,1713456640342,-151.0,0.00017991,2]
[322875730,1713456640350,-151.0,0.00017991,2]
[322875731,1713456640359,-151.0,0.00017991,2]
[322875732,1713456640369,-151.0,0.00017991,2]
[322875733,1713456640378,-591.065839,0.00017991,2]
[322875734,1713456640387,-591.065839,0.00017991,2]
[322875735,1713456640396,-263.959254,0.00017991,2]
[322875736,1713456640405,-151.0,0.00017991,2]
[322875737,1713456640414,-263.959254,0.00017991,2]
[322875738,1713456640424,-151.0,0.00017991,2]
[322875739,1713456640433,-151.0,0.00017991,2]
[322875740,1713456640446,-518.671343,0.00017991,2]
[322875741,1713456640456,-518.671343,0.00017991,2]
[322875742,1713456640465,-151.0,0.00017991,2]
[322875743,1713456640474,-151.0,0.00017991,2]
[322875744,1713456640485,-151.0,0.00017991,2]
[322875745,1713456640494,-151.0,0.00017991,2]
[322875746,1713456640503,-151.0,0.00017991,2]
[322875747,1713456640513,-151.0,0.00017991,2]
[322875748,1713456640523,-435.382962,0.00017991,2]
[322875749,1713456640536,-151.0,0.00017991,2]
[322875750,1713456640545,-151.0,0.00017991,2]
[322875751,1713456640555,-435.382962,0.00017991,2]
[322875752,1713456640565,-151.0,0.00017991,2]
[322875753,1713456640574,-151.0,0.00017991,2]
[322875754,1713456640583,-151.0,0.00017991,2]
[322875755,1713456640592,-151.0,0.00017991,2]
[322875756,1713456640601,-151.849426,0.00017991,2]
[322875757,1713456640610,-151.0,0.00017991,2]
[322875759,1713456640620,-412.908908,0.00017991,2]
[322875760,1713456640629,-412.908908,0.00017991,2]
[322875761,1713456640638,-151.0,0.00017991,2]
[322875762,1713456640648,-151.0,0.00017991,2]
[322875763,1713456640657,-1082.787629,0.00017991,2]
[322875764,1713456640666,-151.0,0.00017991,2]
[322875766,1713456640676,-1082.787629,0.00017991,2]
[322875768,1713456640685,-151.0,0.00017991,2]
[322875770,1713456640695,-959.696749,0.00017991,2]
[322875772,1713456640704,-151.0,0.00017991,2]
[322875774,1713456640714,-250.554013,0.00017991,2]
[322875776,1713456640723,-151.0,0.00017991,2]
[322875778,1713456640732,-959.696749,0.00017991,2]
[322875779,1713456640741,-151.0,0.00017991,2]
[322875780,1713456640750,-250.554013,0.00017991,2]
[322875781,1713456640760,-151.0,0.00017991,2]
[322875782,1713456640769,-936.363296,0.00017991,2]
[322875783,1713456640778,-481.479157,0.00017991,2]
[322875784,1713456640790,-481.479157,0.00017991,2]
[322875785,1713456640801,-936.363296,0.00017991,2]
[322875786,1713456640810,-1467.465041,0.00017991,2]
[322875787,1713456640819,-1467.465041,0.00017991,2]
[322875788,1713456640829,-421.999903,0.00017991,2]
[322875789,1713456640838,-887.584555,0.00017991,2]
[322875790,1713456640847,-421.999903,0.00017991,2]
[322875791,1713456640857,-887.584555,0.00017991,2]
[322875792,1713456640866,-151.0,0.00017991,2]
[322875793,1713456640875,-151.0,0.00017991,2]
[322875794,1713456640885,-203.481194,0.00017991,2]
[322875795,1713456640894,-203.481194,0.00017991,2]
[322875796,1713456640903,-183.754738,0.00017991,2]
[322875797,1713456640913,-2467.692125,0.00017991,2]
[322875798,1713456640922,-2467.692125,0.00017991,2]
[322875799,1713456640931,-2721.286739,0.00017991,2]
[322875800,1713456640941,-190.032245,0.00017991,2]
[322875801,1713456640950,-2721.286739,0.00017991,2]
[322875802,1713456640959,-190.032245,0.00017991,2]
[322875803,1713456640968,-357.942986,0.00017991,2]
[322875804,1713456640977,-357.942986,0.00017991,2]
[322875805,1713456640987,-151.0,0.00017991,2]
[322875806,1713456640997,-151.0,0.00017991,2]
[322875807,1713456641006,-599.284516,0.00017991,2]
[322875808,1713456641015,-171.068799,0.00017991,2]
[322875809,1713456641025,-599.284516,0.00017991,2]
[322875810,1713456641036,-221.090691,0.00017991,2]
[322875811,1713456641045,-151.0,0.00017991,2]
[322875812,1713456641054,-151.0,0.00017991,2]
[322875813,1713456641064,-221.090691,0.00017991,2]
[322875814,1713456641073,-151.0,0.00017991,2]
[322875815,1713456641083,-525.440536,0.00017991,2]
[322875816,1713456641093,-525.440536,0.00017991,2]
[322875817,1713456641102,-151.0,0.00017991,2]
[322875818,1713456641111,-187.943335,0.00017991,2]
[322875819,1713456641120,-151.0,0.00017991,2]
[322875820,1713456641130,-187.943335,0.00017991,2]
[322875821,1713456641139,-1069.506373,0.00017991,2]
[322875822,1713456641149,-1069.506373,0.00017991,2]
[322875823,1713456641158,-151.0,0.00017991,2]
[322875824,1713456641167,-337.675504,0.00017991,2]
[322875825,1713456641176,-352.826732,0.00017991,2]
[322875826,1713456641185,-352.826732,0.00017991,2]
[322875827,1713456641194,-337.675504,0.00017991,2]
[322875828,1713456641204,-5209.900801,0.00017992,2]
[322875829,1713456641213,-1703.9175256,0.00017992,2]
[322875830,1713456641222,-534.0750743,0.00017992,2]
[322875832,1713456641231,-1203.4651032,0.00017992,2]
[322875834,1713456641241,-397.7151832,0.00017992,2]
[322875836,1713456641251,-5064.5188394,0.00017992,2]
[322875838,1713456641260,-7544.7572819,0.00017992,2]
[322875840,1713456641268,-1396.106304,0.00017992,2]
[322875842,1713456641277,-1396.106304,0.00017992,2]
[322875844,1713456641290,-151.0,0.00017992,2]
[322875846,1713456641299,-151.0,0.00017992,2]
[322875848,1713456641309,-3007.5475842,0.00017992,2]
[322875850,1713456641320,-285.3816,0.00017992,2]
[322875851,1713456641330,-285.3816,0.00017992,2]
[322875852,1713456641339,-151.0,0.00017992,2]
[322875853,1713456641348,-1774.906002,0.00017992,2]
[322875854,1713456641357,-1774.906002,0.00017992,2]
[322875855,1713456641366,-750.12648656,0.00017992,2]
[322875856,1713456641375,-599.284516,0.00017992,2]
[322875857,1713456641385,-599.284516,0.00017992,2]
[322875858,1713456641394,-221.090691,0.00017992,2]
[322875859,1713456641403,-151.0,0.00017992,2]
[322875860,1713456641413,-151.0,0.00017992,2]
[322875861,1713456641423,-221.090691,0.00017992,2]
[322875862,1713456641432,-151.0,0.00017992,2]
[322875863,1713456641442,-525.440536,0.00017992,2]
[322875864,1713456641455,-525.440536,0.00017992,2]
[322875865,1713456641464,-151.0,0.00017992,2]
[322875866,1713456641473,-187.943335,0.00017992,2]
[322875867,1713456641483,-151.0,0.00017992,2]
[322875868,1713456641494,-187.943335,0.00017992,2]
[322875869,1713456641503,-1069.506373,0.00017992,2]
[322875870,1713456641513,-1069.506373,0.00017992,2]
[322875871,1713456641523,-151.0,0.00017992,2]
[322875872,1713456641535,-337.675504,0.00017992,2]
[322875873,1713456641544,-352.826732,0.00017992,2]
[322875874,1713456641554,-352.826732,0.00017992,2]
[322875875,1713456641563,-337.675504,0.00017992,2]
[322875876,1713456641572,-1186.37199713,0.00017993,2]
[322875877,1713456641583,-2719.519649,0.00017994,2]
[322875878,1713456641593,-208.07835669,0.00017994,2]
[322875879,1713456641602,-523.10403564,0.00017996,2]
[322875880,1713456641612,-574.20452515,0.00017997,2]
[322875881,1713456641621,-155.2599321,0.00017997,2]
[322875882,1713456641631,-199.74257633,0.00017997,2]
[322875883,1713456641640,-245.08709582,0.00017997,2]
[322875884,1713456641649,-155.0,0.00017997,2]
[322875885,1713456641658,-239.23410596,0.00017997,2]
[322875886,1713456641668,-200.51643712,0.00017997,2]
[322875887,1713456641677,-155.51813378,0.00017997,2]
[322875888,1713456641687,-304.46832005,0.00017997,2]
[322875889,1713456641697,-155.96289677,0.00017997,2]
[322875890,1713456641706,-155.03083472,0.00017997,2]
[322875891,1713456641716,-190.99719088,0.00017997,2]
[322875892,1713456641726,-260.73552158,0.00017997,2]
[322875893,1713456641735,-155.49489142,0.00017997,2]
[322875894,1713456641745,-155.8210919,0.00017997,2]
[322875895,1713456641754,-155.0,0.00017997,2]
[322875896,1713456641763,-362.68041687,0.00017997,2]
[322875897,1713456641772,-222.93985435,0.00017997,2]
[322875898,1713456641781,-155.56538191,0.00017997,2]
[322875899,1713456641793,-155.24966131,0.00017997,2]
[322875900,1713456641802,-1127.05013364,0.00017997,2]
[322875901,1713456641812,-9626.90451285,0.00017997,2]
[322875902,1713456641822,-1476.46668772,0.00017997,2]
[322875903,1713456641832,-975.31084692,0.00017997,2]
[322875904,1713456641841,-596.94302897,0.00017997,2]
[322875905,1713456641851,-268.85140275,0.00017997,2]
[322875906,1713456641860,-156.28217971,0.00017997,2]
[322875907,1713456641869,-155.91644537,0.00017997,2]
[322875908,1713456641879,-619.08414125,0.00017997,2]
[322875909,1713456641888,-408.15974753,0.00017997,2]
[322875910,1713456641897,-155.0,0.00017997,2]
[322875911,1713456641907,-167.08141806,0.00017997,2]
[322875912,1713456641916,-183.53475608,0.00017997,2]
[322875913,1713456641925,-1590.34146261,0.00017997,2]
[322875914,1713456641934,-155.0,0.00017997,2]
[322875915,1713456641943,-306.84545642,0.00017997,2]
[322875916,1713456641952,-196.41457958,0.00017997,2]
[322875917,1713456641961,-157.04510012,0.00017997,2]
[322875918,1713456641971,-151.0,0.00017997,2]
[322875919,1713456641980,-151.0,0.00017997,2]
[322875920,1713456641989,-151.0,0.00017997,2]
[322875921,1713456641998,-173.566917,0.00017997,2]
[322875922,1713456642007,-151.0,0.00017997,2]
[322875923,1713456642016,-152.055199,0.00017997,2]
[322875924,1713456642026,-152.055199,0.00017997,2]
[322875925,1713456642038,-151.0,0.00017997,2]
[322875926,1713456642048,-151.0,0.00017997,2]
[322875927,1713456642057,-151.0,0.00017997,2]
[322875928,1713456642067,-707.824996,0.00017997,2]
[322875929,1713456642076,-151.0,0.00017997,2]
[322875930,1713456642085,-115.94899026,0.00017997,2]
[322875933,1713456643150,-378.69167502,0.00017997,2]
[322875934,1713456643161,-213.18433072,0.00017997,2]
[322875935,1713456643170,-212.170584,0.00017997,2]
[322875936,1713456643179,-151.0,0.00017997,2]
[322875938,1713456643188,-151.0,0.00017997,2]
[322875940,1713456643197,-435.382962,0.00017997,2]
[322875942,1713456643206,-151.0,0.00017997,2]
[322875944,1713456643215,-151.0,0.00017997,2]
[322875946,1713456643225,-435.382962,0.00017997,2]
[322875948,1713456643234,-151.0,0.00017997,2]
[322875949,1713456643244,-151.0,0.00017997,2]
[322875950,1713456643253,-151.0,0.00017997,2]
[322875951,1713456643262,-151.0,0.00017997,2]
[322875952,1713456643272,-151.0,0.00017997,2]
[322875953,1713456643281,-412.908908,0.00017997,2]
[322875954,1713456643295,-412.908908,0.00017997,2]
[322875957,1713456643304,-276.658617,0.00017997,2]
[322875960,1713456643313,-164.392378,0.00017997,2]
[322875963,1713456643323,-1082.787629,0.00017997,2]
[322875965,1713456643333,-151.0,0.00017997,2]
[322875967,1713456643342,-1082.787629,0.00017997,2]
[322875969,1713456643352,-151.0,0.00017997,2]
[322875971,1713456643361,-959.696749,0.00017997,2]
[322875973,1713456643371,-151.0,0.00017997,2]
[322875975,1713456643381,-250.554013,0.00017997,2]
[322875976,1713456643390,-151.0,0.00017997,2]
[322875977,1713456643399,-959.696749,0.00017997,2]
[322875978,1713456643411,-151.0,0.00017997,2]
[322875979,1713456643420,-250.554013,0.00017997,2]
[322875980,1713456643429,-154.905913,0.00017997,2]
[322875981,1713456643440,-936.363296,0.00017997,2]
[322875982,1713456643453,-481.479157,0.00017997,2]
[322875983,1713456643462,-481.479157,0.00017997,2]
[322875984,1713456643471,-298.96807005,0.00017997,2]
[322875985,1713456643484,-602.19344206,0.00017997,2]
[322875986,1713456643500,-35.20178389,0.00017997,2]
[322875987,1713456643509,-760.06642161,0.00017997,2]
[322875988,1713456643523,-707.39861939,0.00017997,2]
[322875989,1713456643536,-299.98435499,0.00017997,2]
[322875990,1713456643645,-648.5229323,0.00017997,2]
[322875991,1713456643658,-518.95775371,0.00017997,2]
[322875992,1713456643667,-421.999903,0.00017997,2]
[322875993,1713456643677,-887.584555,0.00017997,2]
[322875994,1713456643687,-421.999903,0.00017997,2]
[322875995,1713456643696,-887.584555,0.00017997,2]
[322875996,1713456643706,-151.0,0.00017997,2]
[322875997,1713456643715,-151.0,0.00017997,2]
[322875998,1713456643724,-203.481194,0.00017997,2]
[322875999,1713456643734,-203.481194,0.00017997,2]
[322876000,1713456643743,-2359.11323711,0.00017997,2]
[322876001,1713456643760,-108.57888789,0.00017997,2]
[322876002,1713456643770,-580.77840384,0.00017997,2]
[322876003,1713456643781,-1886.91372116,0.00017997,2]
[322876004,1713456643792,-2721.286739,0.00017997,2]
[322876005,1713456643801,-190.032245,0.00017997,2]
[322876006,1713456643810,-2721.286739,0.00017997,2]
[322876007,1713456643819,-190.032245,0.00017997,2]
[322876008,1713456643828,-357.942986,0.00017997,2]
[322876009,1713456643838,-357.942986,0.00017997,2]
[322876010,1713456643847,-151.0,0.00017997,2]
[322876011,1713456643856,-127.74771125,0.00017997,2]
[322876012,1713456643880,-23.25228875,0.00017997,2]
[322876013,1713456643891,-599.284516,0.00017997,2]
[322876014,1713456643902,-197.653681,0.00017997,2]
[322876015,1713456643916,-401.630835,0.00017997,2]
[322876016,1713456643925,-221.090691,0.00017997,2]
[322876017,1713456643934,-151.0,0.00017997,2]
[322876018,1713456643943,-151.0,0.00017997,2]
[322876019,1713456643952,-221.090691,0.00017997,2]
[322876020,1713456643961,-151.0,0.00017997,2]
[322876021,1713456643970,-525.440536,0.00017997,2]
[322876022,1713456643979,-525.440536,0.00017997,2]
[322876023,1713456643989,-151.0,0.00017997,2]
[322876024,1713456643998,-187.943335,0.00017997,2]
[322876025,1713456644007,-182.366904,0.00017997,2]
[322876026,1713456644017,-1069.506373,0.00017997,2]
[322876027,1713456644025,-187.943335,0.00017997,2]
[322876028,1713456644036,-1069.506373,0.00017997,2]
[322876029,1713456644046,-211.007675,0.00017997,2]
[322876030,1713456644056,-337.675504,0.00017997,2]
[322876031,1713456644065,-352.826732,0.00017997,2]
[322876032,1713456644074,-352.826732,0.00017997,2]
[322876033,1713456644083,-337.675504,0.00017997,2]
[322876034,1713456644092,-155.0,0.00017998,2]
[322876035,1713456644102,-155.71048596,0.00017998,2]
[322876036,1713456644112,-195.23070885,0.00017998,2]
[322876037,1713456644121,-5106.0870492,0.00017998,2]
[322876038,1713456644133,-732.12879193,0.00017998,2]
[322876039,1713456644143,-287.14,0.00017998,2]
[322876040,1713456644152,-287.14,0.00017998,2]
[322876041,1713456644161,-265.498213,0.00017998,2]
[322876042,1713456644171,-151.0,0.00017998,2]
[322876043,1713456644180,-151.0,0.00017998,2]
[322876044,1713456644189,-151.0,0.00017998,2]
[322876045,1713456644198,-151.0,0.00017998,2]
[322876046,1713456644210,-23.32188507,0.00017998,2]
[322876047,1713456645822,-567.74395393,0.00017998,2]
[322876048,1713456645831,-591.065839,0.00017998,2]
[322876049,1713456645841,-263.959254,0.00017998,2]
[322876050,1713456645851,-67.23095307,0.00017998,2]
[322876051,1713456645936,-83.76904693,0.00017998,2]
[322876052,1713456645946,-263.959254,0.00017998,2]
[322876053,1713456645957,-151.0,0.00017998,2]
[322876054,1713456645967,-151.0,0.00017998,2]
[322876055,1713456645976,-518.671343,0.00017998,2]
[322876056,1713456645986,-518.671343,0.00017998,2]
[322876057,1713456645996,-151.0,0.00017998,2]
[322876058,1713456646006,-151.0,0.00017998,2]
[322876059,1713456646016,-269.035574,0.00017998,2]
[322876060,1713456646025,-818.23383901,0.00017998,2]
[322876064,1713456646054,-406.44,0.00017998,2]
[322876065,1713456646066,-171.43246499,0.00017998,2]
[322876066,1713456646076,-437.36440486,0.00017998,2]
[322876067,1713456646104,-311.14025961,0.00017998,2]
[322876068,1713456646182,-647.60163953,0.00017998,2]
[322876069,1713456646192,-151.0,0.00017998,2]
[322876070,1713456646203,-151.0,0.00017998,2]
[322876071,1713456646213,-119.07968786,0.00017998,2]
[322876076,1713456647829,-161.74188231,0.00017819,2]
[322876077,1713456647839,-166.30191214,0.00017998,2]
[322876078,1713456647848,-285.3816,0.00017998,2]
[322876079,1713456647858,-1774.906002,0.00017998,2]
[322876080,1713456647869,-1774.906002,0.00017998,2]
[322876081,1713456647879,-151.0,0.00017998,2]
[322876082,1713456647890,-1459.72442961,0.00017998,2]
[322876083,1713456648018,-1254.00000201,0.00017998,2]
[322876084,1713456648176,-4273.10315038,0.00017998,2]
[322876085,1713456648186,-6986.827582,0.00017998,2]
[322876086,1713456648196,-192.406778,0.00017998,2]
[322876087,1713456648206,-192.406778,0.00017998,2]
[322876088,1713456648215,-151.0,0.00017998,2]
[322876089,1713456648225,-151.0,0.00017998,2]
[322876090,1713456648234,-24188.59,0.00017999,2]
[322876091,1713456648244,-1151.47,0.00017999,2]
[322876092,1713456648253,-1151.47,0.00017999,2]
[322876093,1713456648262,-1151.47,0.00017999,2]
[322876094,1713456648271,-1151.47,0.00017999,2]
[322876095,1713456648281,-1151.47,0.00017999,2]
[322876096,1713456648560,-1151.47,0.00017999,2]
[322876097,1713456648660,-1151.47,0.00017999,2]
[322876098,1713456648670,-1151.47,0.00017999,2]
[322876099,1713456648679,-151.0,0.00017999,2]
[322876100,1713456648690,-151.0,0.00017999,2]
[322876101,1713456648699,-151.0,0.00017999,2]
[322876102,1713456648709,-270.016629,0.00017999,2]
[322876103,1713456648720,-270.016629,0.00017999,2]
[322876104,1713456648730,-151.0,0.00017999,2]
[322876105,1713456648739,-151.0,0.00017999,2]
[322876106,1713456648749,-152.055199,0.00017999,2]
[322876107,1713456648758,-152.055199,0.00017999,2]
[322876108,1713456648767,-151.0,0.00017999,2]
[322876109,1713456648776,-151.0,0.00017999,2]
[322876110,1713456648786,-151.0,0.00017999,2]
[322876111,1713456648796,-707.824996,0.00017999,2]
[322876112,1713456648806,-151.0,0.00017999,2]
[322876113,1713456648815,-707.824996,0.00017999,2]
[322876114,1713456648825,-151.0,0.00017999,2]
[322876115,1713456648834,-151.0,0.00017999,2]
[322876116,1713456648843,-435.382962,0.00017999,2]
[322876117,1713456648852,-151.0,0.00017999,2]
[322876118,1713456648862,-151.0,0.00017999,2]
[322876119,1713456648871,-435.382962,0.00017999,2]
[322876120,1713456648881,-244.92218,0.00017999,2]
[322876121,1713456648891,-151.0,0.00017999,2]
[322876122,1713456648900,-151.0,0.00017999,2]
[322876123,1713456648909,-151.0,0.00017999,2]
[322876124,1713456648919,-412.908908,0.00017999,2]
[322876125,1713456648928,-412.908908,0.00017999,2]
[322876126,1713456648938,-1082.787629,0.00017999,2]
[322876127,1713456648947,-151.0,0.00017999,2]
[322876128,1713456648957,-1082.787629,0.00017999,2]
[322876129,1713456648966,-151.0,0.00017999,2]
[322876130,1713456648976,-959.696749,0.00017999,2]
[322876131,1713456648985,-250.554013,0.00017999,2]
[322876132,1713456648995,-151.0,0.00017999,2]
[322876133,1713456649004,-151.0,0.00017999,2]
[322876134,1713456649015,-959.696749,0.00017999,2]
[322876135,1713456649024,-250.554013,0.00017999,2]
[322876136,1713456649034,-151.0,0.00017999,2]
[322876137,1713456649046,-936.363296,0.00017999,2]
[322876138,1713456649056,-481.479157,0.00017999,2]
[322876139,1713456649065,-481.479157,0.00017999,2]
[322876140,1713456649074,-936.363296,0.00017999,2]
[322876141,1713456649084,-1467.465041,0.00017999,2]
[322876142,1713456649093,-1467.465041,0.00017999,2]
[322876143,1713456649102,-421.999903,0.00017999,2]
[322876144,1713456649112,-887.584555,0.00017999,2]